fUST/lending_fUST_20240817
["ID","MTS","AMOUNT","RATE_DAILY","PERIOD"]
[335115316,1723857042130,-1000.0,0.00053111,120]
[335115317,1723857042142,-1000.0,0.00053222,120]
[335115318,1723857042154,-150.112233,0.000533,12]
[335115319,1723857042165,-1000.0,0.00053333,120]
[335115320,1723857042178,-1000.0,0.00053444,120]
[335115321,1723857042189,-1000.0,0.00053556,120]
[335115322,1723857042200,-201.0,0.00053569,30]
[335115323,1723857042210,-167.5,0.00053569,30]
[335115324,1723857042220,-23039.17466744,0.00053577,2]
[335115325,1723857042274,-35702.48122105,0.00053577,2]
[335115387,1723857044078,-347.85600012,0.00053577,2]
[335115388,1723857044090,-3300.1543449,0.00053577,2]
[335115424,1723857046175,-8560.43951722,0.00053577,2]
[335115425,1723857047253,153.36,0.000371,31]
[335115426,1723857047557,153.36,0.000371,31]
[335115427,1723857047586,153.36,0.000371,31]
[335115428,1723857047691,153.36,0.000371,31]
[335115429,1723857104196,4812.31674178,0.00014519,2]
[335115430,1723857104219,163.97161957,0.00014519,2]
[335115431,1723857104244,3863.94826716,0.00014519,2]
[335115432,1723857104668,2138.88807741,0.00014519,2]
[335115440,1723857791182,24900.0,0.00011738,2]
[335115443,1723857845433,100.0,0.00011738,2]
[335115445,1723857931158,-343.39599935,0.00011738,2]
[335115449,1723858028199,-250.0,0.00011663,2]
[335115450,1723858028223,-250.0,0.00011695,2]
[335115451,1723858028247,-250.0,0.00011727,2]
[335115452,1723858028268,-202.85588213,0.00011738,2]
[335115453,1723858028291,-250.0,0.00011759,2]
[335115454,1723858028313,-250.0,0.00011791,2]
[335115455,1723858028337,-250.0,0.00011823,2]
[335115456,1723858028359,-250.0,0.00011855,2]
[335115457,1723858028382,-250.0,0.00011887,2]
[335115458,1723858028405,-250.0,0.00011919,2]
[335115459,1723858028437,-250.0,0.00011951,2]
[335115460,1723858028460,-250.0,0.00011983,2]
[335115461,1723858028567,-250.0,0.00012015,2]
[335115462,1723858028592,-250.0,0.00012047,2]
[335115463,1723858028615,-152.75655397,0.00012079,2]
[335115464,1723858039106,-543.39518747,0.00011987,2]
[335115469,1723858128329,21350.07874587,0.0001,2]
[335115478,1723858151131,-2469.2413539,0.00011212,2]
[335115479,1723858151153,-300.0,0.00011841,2]
[335115480,1723858151175,-42392.12136225,0.00011842,2]
[335115481,1723858151199,-35299.792319,0.00011977,2]
[335115482,1723858151222,-97.24344603,0.00012079,2]
[335115483,1723858151358,-250.0,0.00012111,2]
[335115484,1723858151382,-250.0,0.00012143,2]
[335115485,1723858151406,-250.0,0.00012175,2]
[335115486,1723858151432,-250.0,0.00012207,2]
[335115487,1723858151456,-250.0,0.00012239,2]
[335115488,1723858151480,-250.0,0.00012271,2]
[335115489,1723858151506,-2385.43734281,0.000128,2]
[335115490,1723858151530,-809.65861321,0.00012898,2]
[335115491,1723858151554,-1224.23097793,0.000129,2]
[335115492,1723858151577,-196.71565749,0.00012971,2]
[335115493,1723858151599,-157.02043595,0.00012985,2]
[335115494,1723858151623,-572.42316394,0.00012985,2]
[335115495,1723858151647,-155.17643878,0.00012989,2]
[335115496,1723858151671,-413.45265018,0.00012989,2]
[335115497,1723858151696,-414.342124,0.00012991,7]
[335115498,1723858151718,-493.03932546,0.00012991,2]
[335115499,1723858151743,-150.112233,0.00013,2]
[335115500,1723858151771,-202.48635104,0.00013025,2]
[335115501,1723858151794,-154.93953486,0.00013496,4]
[335115502,1723858151820,-8093.32837017,0.00013566,2]
[335115503,1723858152136,-2245.78374608,0.00013566,2]
[335115504,1723858152164,-508.6629044,0.00013566,2]
[335115505,1723858154111,-24452.01729835,0.00013566,2]
[335115506,1723858154136,-664.98122348,0.00013697,2]
[335115507,1723858154159,-228.07367606,0.00013698,2]
[335115508,1723858154183,-500.0,0.00013698,2]
[335115509,1723858154210,-418.33780304,0.00013698,2]
[335115510,1723858154235,-500.0,0.00013698,2]
[335115511,1723858154261,-500.0,0.00013698,2]
[335115512,1723858154287,-500.0,0.00013698,2]
[335115513,1723858154310,-500.0,0.00013698,2]
[335115514,1723858154334,-500.0,0.00013698,2]
[335115515,1723858154359,-500.0,0.00013699,2]
[335115516,1723858154383,-54898.94689544,0.00014529,2]
[335115517,1723858154407,-150.112233,0.000172,2]
[335115518,1723858154431,-150.112233,0.000213,3]
[335115519,1723858154455,-2385.4373428,0.00021903,2]
[335115520,1723858154481,-1224.23097788,0.00022813,2]
[335115521,1723858154504,-150.112233,0.000255,10]
[335115522,1723858154528,-150.112233,0.000296,10]
[335115523,1723858154550,-2385.4373428,0.00031007,2]
[335115524,1723858154574,-1224.23097788,0.00033606,2]
[335115525,1723858154598,-150.112233,0.000338,7]
[335115526,1723858154619,-995.25538244,0.00035,120]
[335115527,1723858154640,-201.0,0.00037076,3]
[335115528,1723858154667,-153.3,0.000371,31]
[335115529,1723858154694,-153.3,0.000371,31]
[335115530,1723858154725,-153.3,0.000371,31]
[335115531,1723858154754,-153.3,0.000371,31]
[335115532,1723858154873,-153.3,0.000371,31]
[335115533,1723858154905,-153.3,0.000371,31]
[335115534,1723858154931,-150.112233,0.00038,10]
[335115535,1723858154955,-402.0,0.00038446,3]
[335115536,1723858154977,-4485.11664529,0.0004,30]
[335115537,1723858155001,-35299.792319,0.000401,5]
[335115538,1723858155028,-2385.4373428,0.0004011,2]
[335115539,1723858155050,-150.112233,0.000421,7]
[335115540,1723858155072,-5878.00291565,0.000439,30]
[335115541,1723858155095,-1224.23097788,0.00044399,28]
[335115542,1723858155119,-500.0,0.00044777,60]
[335115543,1723858155142,-1333.66462,0.000456,51]
[335115544,1723858155166,-500.0,0.00045777,60]
[335115545,1723858155190,-1000.0,0.000461,51]
[335115546,1723858155215,-150.112233,0.000463,15]
[335115547,1723858155235,-404.21224941,0.000466,51]
[335115548,1723858161128,-595.78775059,0.000466,51]
[335115549,1723858161151,-500.0,0.00046777,60]
[335115550,1723858161267,-3670.26828292,0.00046897,14]
[335115551,1723858161289,-1314.84627922,0.00047767,5]
[335115552,1723858164100,-203.92685115,0.00047767,5]
[335115554,1723858172171,-33781.01918863,0.00047767,5]
[335115555,1723858172192,-500.0,0.00047777,60]
[335115556,1723858172215,-500.0,0.00048777,60]
[335115557,1723858195544,669.62993136,0.00041,4]
[335115558,1723858202426,9292.01339368,0.00046925,120]
[335115559,1723858221671,210.74591245,0.00033,120]
[335115572,1723858232334,-5090.97413604,0.00046925,120]
[335115617,1723858238413,-375.13832803,0.00046925,120]
[335115620,1723858238424,-1208.90342532,0.00046925,120]
[335115622,1723858238433,-160.75316748,0.00046925,31]
[335115623,1723858238444,-425.63066037,0.00046925,120]
[335115624,1723858238455,-74.36933963,0.00046925,120]
[335115625,1723858238465,-210.4687519,0.00046925,120]
[335115626,1723858238533,-200.66244558,0.00046925,120]
[335115627,1723858238541,-500.0,0.00046925,120]
[335115628,1723858238551,-500.0,0.00046925,120]
[335115629,1723858238561,-500.0,0.00046925,120]
[335115630,1723858238570,-500.0,0.00046925,120]
[335115631,1723858238579,-3359.703815,0.00046926,2]
[335115632,1723858238731,651.3378,0.00043288,30]
[335115646,1723858240533,-169820.80223434,0.00046926,2]
[335115668,1723858246323,-54701.18210726,0.00046926,2]
[335115669,1723858246335,-5998.87568544,0.00046928,30]
[335115670,1723858246348,-150.112233,0.000489,11]
[335115671,1723858246359,-2385.4373428,0.00049213,2]
[335115672,1723858246372,-927.26129755,0.00049213,2]
[335115673,1723858246384,-151.0,0.00049282,7]
[335115674,1723858246395,-35299.792319,0.00049282,6]
[335115675,1723858246405,-25116.70175487,0.00049283,6]
[335115676,1723858246490,-11730.14145474,0.00049283,6]
[335115677,1723858246632,1502.25112542,0.000428,60]
[335115678,1723858255913,155.84,0.000371,31]
[335115679,1723858255960,155.84,0.000371,31]
[335115680,1723858256030,155.84,0.000371,31]
[335115681,1723858256087,155.84,0.000371,31]
[335115682,1723858256153,155.84,0.000371,31]
[335115684,1723858271938,2771.18720339,0.00014245,2]
[335115685,1723858271965,1821.2475238,0.00014245,2]
[335115686,1723858271993,231.73765592,0.00014245,2]
[335115708,1723859228284,-250.0,0.00012068,2]
[335115709,1723859228308,-250.0,0.00012101,2]
[335115710,1723859228334,-250.0,0.00012134,2]
[335115711,1723859228358,-250.0,0.00012167,2]
[335115712,1723859228383,-250.0,0.00012201,2]
[335115713,1723859228411,-250.0,0.00012234,2]
[335115714,1723859228436,-250.0,0.00012267,2]
[335115715,1723859228461,-250.0,0.000123,2]
[335115716,1723859228484,-250.0,0.00012333,2]
[335115717,1723859228505,-524.74754872,0.00012356,2]
[335115718,1723859234207,-221.94622024,0.00012356,2]
[335115719,1723859249095,-2173.53418455,0.00011636,2]
[335115720,1723859250092,-1897.22332529,0.00011636,2]
[335115723,1723859346113,-300.0,0.00011635,2]
[335115724,1723859346135,-165.0,0.00011635,2]
[335115725,1723859346158,-20829.24249016,0.00011636,2]
[335115726,1723859346183,-2607.18879763,0.00011636,2]
[335115727,1723859346206,-250.0,0.00012366,2]
[335115728,1723859346320,-250.0,0.00012399,2]
[335115729,1723859346345,-250.0,0.00012432,2]
[335115730,1723859346368,-250.0,0.00012465,2]
[335115731,1723859346391,-250.0,0.00012498,2]
[335115732,1723859346416,-250.0,0.00012532,2]
[335115733,1723859346437,-1500.0,0.00012551,2]
[335115734,1723859346459,-250.0,0.00012565,2]
[335115735,1723859346483,-250.0,0.00012598,2]
[335115736,1723859346507,-1613.12693484,0.00012629,2]
[335115737,1723859346529,-2130.84419312,0.00012629,2]
[335115738,1723859346551,-250.0,0.00012631,2]
[335115739,1723859346574,-250.0,0.00012664,2]
[335115740,1723859346597,-250.0,0.00012697,2]
[335115741,1723859346621,-288.21318058,0.00012934,2]
[335115742,1723859346643,-900.31509545,0.00012934,2]
[335115743,1723859346667,-4405.11224909,0.00012971,2]
[335115744,1723859346689,-155.10685423,0.00012985,2]
[335115745,1723859346711,-342.58313088,0.00012985,2]
[335115746,1723859346732,-158.53057556,0.00012989,2]
[335115747,1723859346754,-295.53487118,0.00012989,2]
[335115748,1723859346774,-290.26521496,0.00012989,2]
[335115749,1723859346795,-570.3556052,0.00012991,2]
[335115750,1723859346821,-157.31375148,0.00012991,2]
[335115751,1723859346841,-197.08038907,0.00012991,2]
[335115752,1723859346863,-155.1807002,0.00012999,2]
[335115753,1723859346883,-154.89913263,0.00012999,2]
[335115754,1723859346905,-155.08214563,0.00013596,2]
[335115755,1723859346926,-502.23550132,0.00013698,2]
[335115756,1723859346953,-500.0,0.00013698,2]
[335115757,1723859346974,-334.77462412,0.00013698,2]
[335115758,1723859346996,-500.0,0.00013698,2]
[335115759,1723859347018,-505.62907527,0.00013698,2]
[335115760,1723859347039,-506.53793831,0.00013698,2]
[335115761,1723859347061,-514.13963,0.00013699,2]
[335115762,1723859347084,-500.0,0.00013699,2]
[335115763,1723859347107,-500.0,0.00013699,2]
[335115764,1723859347130,-500.0,0.00013699,2]
[335115765,1723859347153,-500.0,0.00013699,2]
[335115766,1723859347178,-500.0,0.00013699,2]
[335115767,1723859347200,-228.94958625,0.00013699,2]
[335115768,1723859347223,-414.29234557,0.00014104,2]
[335115769,1723859347248,-812.10587016,0.00014104,2]
[335115770,1723859347272,-155.64889334,0.00014245,2]
[335115771,1723859347294,-377.05281157,0.00014245,2]
[335115772,1723859347321,-4719.6365418,0.00014245,2]
[335115773,1723859347342,-405.34838299,0.00014245,2]
[335115774,1723859347363,-1871.79801644,0.00014245,2]
[335115775,1723859347386,-217.63322077,0.00014245,2]
[335115776,1723859347409,-1250.70503,0.00014245,2]
[335115777,1723859347435,-6275.83311316,0.00017266,2]
[335115778,1723859347456,-4848.46477836,0.00017266,2]
[335115779,1723859347477,-514.13963,0.00020548,2]
[335115780,1723859347504,-157.393819,0.00024658,15]
[335115781,1723859347525,-200.0,0.00032,120]
[335115782,1723859347546,-200.0,0.00034,120]
[335115783,1723859347571,-200.0,0.00034,120]
[335115784,1723859347595,-200.0,0.00036,120]
[335115785,1723859347623,-155.53,0.000371,31]
[335115786,1723859347724,-155.53,0.000371,31]
[335115787,1723859347751,-155.53,0.000371,31]
[335115788,1723859347776,-155.53,0.000371,31]
[335115789,1723859347799,-3611.21824,0.0004,2]
[335115790,1723859347822,-2000.0,0.0004,7]
[335115791,1723859347845,-2000.0,0.00042465,120]
[335115792,1723859347866,-1009.16780773,0.00042739,120]
[335115793,1723859347887,-4789.9014,0.00043261,30]
[335115794,1723859355103,-203.9860017,0.00046825,2]
[335115795,1723859355126,-674.28,0.00046885,30]
[335115796,1723859355150,-431.21,0.0004689,30]
[335115797,1723859355176,-490.03,0.0004689,30]
[335115798,1723859355208,-408.36,0.0004689,30]
[335115799,1723859355249,-213.49636366,0.0004689,30]
[335115806,1723859363221,-126.80363634,0.0004689,30]
[335115807,1723859363243,-283.58,0.0004689,30]
[335115808,1723859363270,-236.32,0.0004689,30]
[335115809,1723859363292,-196.93,0.0004689,30]
[335115810,1723859363314,-164.11,0.0004689,30]
[335115811,1723859363335,-820.56,0.00046891,30]
[335115812,1723859363356,-208.36487512,0.000469,31]
[335115813,1723859363379,-500.0,0.000469,120]
[335115814,1723859363400,-500.0,0.000469,120]
[335115815,1723859363423,-500.0,0.000469,120]
[335115816,1723859363447,-500.0,0.000469,120]
[335115817,1723859363469,-500.0,0.000469,120]
[335115818,1723859363493,-623.13099999,0.000469,120]
[335115819,1723859363515,-2862.68690532,0.00046925,60]
[335115820,1723859363536,-584.84811723,0.00046925,120]
[335115821,1723859363559,-500.0,0.00046925,120]
[335115822,1723859363581,-500.0,0.00046925,120]
[335115823,1723859363609,-500.0,0.00047792,30]
[335115824,1723859363635,-185.99,0.00048079,3]
[335115825,1723859363661,-25130.682538,0.00048089,6]
[335115826,1723859363684,-5083.74336331,0.00048128,2]
[335115827,1723859363707,-5083.74336331,0.00048491,2]
[335115828,1723859363729,-5083.74336331,0.00048608,2]
[335115829,1723859363753,-2000.0,0.0004866,120]
[335115830,1723859363778,-507.19623907,0.00048776,60]
[335115831,1723859363802,-150.112233,0.000488,13]
[335115837,1723859390120,2789.7753068,0.00014104,2]
[335115838,1723859390144,1929.861235,0.00014104,2]
[335115839,1723859393116,265.44105413,0.00014104,2]
[335115840,1723859395544,323.98909943,0.00014104,2]
[335115841,1723859397000,239.89322208,0.00014104,2]
[335115842,1723859399497,1230.55275848,0.00046801,28]
[335115843,1723859405440,171.11503915,0.00014104,2]
[335115845,1723859421517,1891.91844814,0.00045,12]
[335115846,1723859421539,8108.08155186,0.00045,12]
[335115852,1723859432549,-329.16322832,0.00046901,120]
[335115853,1723859432564,-1710.65187877,0.00046901,120]
[335115854,1723859432692,-2960.18489291,0.00046901,120]
[335115855,1723859432701,-3035.45017358,0.00046901,120]
[335115856,1723859432781,-24.66069114,0.00046901,120]
[335115866,1723859438446,-303.21662069,0.000469,7]
[335115870,1723859438455,-207.73025255,0.00046901,120]
[335115879,1723859438492,-1732.15888273,0.00046901,120]
[335115882,1723859438503,-5000.0,0.00046901,120]
[335115884,1723859438515,-5000.0,0.00046901,120]
[335115885,1723859438526,-5000.0,0.00046901,120]
[335115886,1723859438537,-5000.0,0.00046901,120]
[335115887,1723859438550,-3167.84111727,0.00046901,120]
[335115888,1723859438565,-1832.15888273,0.00046901,120]
[335115889,1723859438578,-1207.71579545,0.00046901,120]
[335115935,1723859440631,-3792.28420455,0.00046901,120]
[335115937,1723859440641,-5000.0,0.00046901,120]
[335115939,1723859440653,-5000.0,0.00046901,120]
[335115942,1723859440673,-5000.0,0.00046901,120]
[335115944,1723859440685,-5000.0,0.00046901,120]
[335115947,1723859440698,-5000.0,0.00046901,120]
[335115949,1723859440708,-5000.0,0.00046901,120]
[335115951,1723859440719,-5000.0,0.00046901,120]
[335115953,1723859440729,-5000.0,0.00046901,120]
[335115955,1723859440741,-508.64,0.00049,30]
[335115957,1723859440751,-2000.0,0.00049,48]
[335115959,1723859440763,-1566.94,0.00049041,120]
[335115962,1723859440774,-1566.94,0.00049041,120]
[335115964,1723859440786,-1566.94,0.00049041,120]
[335115966,1723859440799,-1566.94,0.00049041,120]
[335115968,1723859440809,-150.112233,0.000492,13]
[335115970,1723859440819,-2000.0,0.0004924,120]
[335115972,1723859440830,-500.0,0.00049271,120]
[335115974,1723859440841,-186.19169999,0.00049271,120]
[335115976,1723859440850,-500.0,0.00049271,120]
[335115978,1723859440861,-500.0,0.00049271,120]
[335115980,1723859440871,-500.0,0.00049271,120]
[335115982,1723859440881,-25130.682538,0.00049272,6]
[335115984,1723859440891,-500.0,0.00049283,6]
[335115986,1723859440901,-515.2,0.00049283,120]
[335115988,1723859440911,-25130.682538,0.00049292,6]
[335115989,1723859440921,-1317.49,0.000493,30]
[335115990,1723859440931,-1566.94,0.00049302,120]
[335115992,1723859440941,-25130.682538,0.00049303,6]
[335115994,1723859440952,-25130.682538,0.00049303,6]
[335115996,1723859440962,-1566.94,0.00049312,120]
[335115998,1723859440972,-151.0,0.00049313,120]
[335116001,1723859440981,-151.0,0.00049313,120]
[335116003,1723859440990,-240.505414,0.00049313,120]
[335116005,1723859441001,-240.505414,0.00049313,120]
[335116007,1723859441010,-151.0,0.00049313,30]
[335116009,1723859441022,-151.0,0.00049313,120]
[335116011,1723859441032,-918.604264,0.00049313,120]
[335116012,1723859441042,-918.604264,0.00049313,120]
[335116013,1723859441052,-804.11336,0.00049313,120]
[335116014,1723859441061,-804.11336,0.00049313,120]
[335116015,1723859441072,-184.996757,0.00049313,120]
[335116016,1723859441082,-184.996757,0.00049313,120]
[335116017,1723859441093,-2002.895559,0.00049313,120]
[335116018,1723859441104,-2002.895559,0.00049313,120]
[335116019,1723859441116,-151.0,0.00049313,120]
[335116020,1723859441127,-151.0,0.00049313,120]
[335116021,1723859441137,-63.27904941,0.00049313,120]
[335116023,1723859443549,-1247.00275819,0.00049313,120]
[335116024,1723859444090,-358.6585054,0.00049313,120]
[335116025,1723859444101,-1668.940313,0.00049313,120]
[335116026,1723859444112,-463.623016,0.00049313,14]
[335116027,1723859444123,-183.82544,0.00049313,120]
[335116028,1723859444133,-463.623016,0.00049313,14]
[335116029,1723859444146,-183.82544,0.00049313,120]
[335116030,1723859444156,-1929.214415,0.00049313,120]
[335116032,1723859444166,-1929.214415,0.00049313,120]
[335116033,1723859444177,-309.681352,0.00049313,120]
[335116034,1723859444189,-309.681352,0.00049313,120]
[335116035,1723859444199,-151.0,0.00049313,120]
[335116036,1723859444209,-208.194352,0.00049313,120]
[335116037,1723859444220,-255.220272,0.00049315,120]
[335116038,1723859444231,-1814.262133,0.00049315,120]
[335116039,1723859444240,-151.0,0.00049315,120]
[335116040,1723859444250,-255.220272,0.00049315,120]
[335116041,1723859444261,-1814.262133,0.00049315,120]
[335116042,1723859444270,-880.268457,0.00049315,120]
[335116043,1723859444280,-152.740496,0.00049315,120]
[335116044,1723859444290,-880.268457,0.00049315,120]
[335116045,1723859444300,-398.349034,0.00049315,120]
[335116046,1723859444309,-398.349034,0.00049315,120]
[335116047,1723859444324,-151.0,0.00049315,120]
[335116048,1723859444334,-153.282367,0.00049315,120]
[335116049,1723859444344,-741.568827,0.00049315,120]
[335116050,1723859444356,-741.568827,0.00049315,120]
[335116051,1723859444367,-2622.362496,0.00049315,120]
[335116052,1723859444378,-430.7955786,0.00049315,120]
[335116079,1723859446970,-2191.5669174,0.00049315,120]
[335116080,1723859446980,-500.0,0.00049315,120]
[335116081,1723859446991,-500.0,0.00049315,120]
[335116082,1723859447002,-500.0,0.00049315,120]
[335116083,1723859447013,-500.0,0.00049315,120]
[335116084,1723859447026,-500.0,0.00049315,120]
[335116085,1723859447036,-500.0,0.00049315,120]
[335116086,1723859447047,-500.0,0.00049315,120]
[335116087,1723859447057,-500.0,0.00049315,120]
[335116088,1723859447068,-500.0,0.00049315,120]
[335116089,1723859447080,-500.0,0.00049315,120]
[335116090,1723859447093,-500.0,0.00049315,120]
[335116091,1723859447103,-500.0,0.00049315,120]
[335116092,1723859447112,-500.0,0.00049315,120]
[335116093,1723859447122,-500.0,0.00049315,120]
[335116094,1723859447133,-500.0,0.00049315,120]
[335116095,1723859447145,-500.0,0.00049315,120]
[335116096,1723859447155,-500.0,0.00049315,120]
[335116097,1723859447166,-500.0,0.00049315,120]
[335116098,1723859447176,-252.8919235,0.00049315,120]
[335116099,1723859447189,-247.1080765,0.00049315,120]
[335116100,1723859447200,-500.0,0.00049315,120]
[335116101,1723859447210,-500.0,0.00049315,120]
[335116102,1723859447220,-500.0,0.00049315,120]
[335116103,1723859447231,-328.44357686,0.00049315,120]
[335116104,1723859447260,-45.83232135,0.00049315,120]
[335116105,1723859449128,13192.7118222,0.0004,30]
[335116106,1723859463787,155.03,0.000371,31]
[335116107,1723859463870,155.03,0.000371,31]
[335116108,1723859463931,155.03,0.000371,31]
[335116109,1723859463992,155.03,0.000371,31]
[335116110,1723859464034,155.03,0.000371,31]
[335116111,1723859477617,458.0,0.000376,7]
[335116112,1723859484174,18115.08249446,0.00014519,2]
[335116113,1723859484197,6.74978541,0.00014519,2]
[335116114,1723859484222,5511.60216629,0.00014519,2]
[335116115,1723859484244,6027.0377047,0.00014519,2]
[335116125,1723859916128,-300.0,0.00012788,2]
[335116126,1723859916157,-300.0,0.00012788,2]
[335116127,1723859916185,-24900.0,0.00012789,2]
[335116128,1723859916214,-1076.73366367,0.00013497,2]
[335116129,1723859916242,-7851.90589217,0.00013497,2]
[335116130,1723859916269,-7010.73309326,0.00013497,2]
[335116131,1723859916296,-32947.03705356,0.00013597,2]
[335116132,1723859916323,-181.73274015,0.00013599,2]
[335116133,1723859916348,-171.81918573,0.00013688,2]
[335116134,1723859916376,-204.58483729,0.00013688,2]
[335116135,1723859916401,-196.73427524,0.00013688,2]
[335116136,1723859916427,-154.9963432,0.00013688,2]
[335116137,1723859916453,-500.0,0.00013699,2]
[335116138,1723859916483,-500.0,0.00013699,2]
[335116139,1723859916516,-500.0,0.00013699,2]
[335116140,1723859916543,-500.0,0.00013699,2]
[335116141,1723859916568,-500.0,0.00013699,2]
[335116142,1723859916591,-500.0,0.00013699,2]
[335116143,1723859916615,-500.0,0.00013699,2]
[335116144,1723859916643,-500.0,0.00013699,2]
[335116145,1723859916667,-500.0,0.00013699,2]
[335116146,1723859916692,-500.0,0.00013699,2]
[335116147,1723859916716,-500.0,0.00013699,2]
[335116148,1723859916739,-500.0,0.00013699,2]
[335116149,1723859916764,-500.0,0.00013699,2]
[335116150,1723859916788,-500.0,0.00013699,2]
[335116151,1723859916814,-500.0,0.00013699,2]
[335116152,1723859916838,-218.7909894,0.00013699,2]
[335116153,1723859916861,-500.0,0.00013699,2]
[335116154,1723859916884,-500.0,0.00013699,2]
[335116155,1723859916910,-500.0,0.00013699,2]
[335116156,1723859916936,-500.0,0.00013699,2]
[335116157,1723859916962,-500.0,0.00013699,2]
[335116158,1723859916988,-500.0,0.00013699,2]
[335116159,1723859917016,-500.0,0.00013699,2]
[335116160,1723859917040,-8856.63961793,0.00013971,2]
[335116161,1723859917143,-420.0,0.00014067,2]
[335116162,1723859917169,-933.51070648,0.00014145,2]
[335116163,1723859917193,-3274.78160192,0.00014519,2]
[335116164,1723859925561,-1302.43687534,0.00014519,2]
[335116165,1723859925590,-1831.89972967,0.00014519,2]
[335116166,1723859925620,-973.20252733,0.00014519,2]
[335116167,1723859925648,-250.0,0.00014694,2]
[335116168,1723859925677,-250.0,0.00014735,2]
[335116169,1723859925702,-250.0,0.00014775,2]
[335116170,1723859925728,-250.0,0.00014815,2]
[335116171,1723859925754,-250.0,0.00014856,2]
[335116172,1723859925780,-250.0,0.00014896,2]
[335116173,1723859925805,-250.0,0.00014936,2]
[335116174,1723859925830,-250.0,0.00014976,2]
[335116176,1723859992818,330.05343314,0.00014519,2]
[335116178,1723860095636,11622.60103922,0.00014917,2]
[335116179,1723860119139,27975.99183496,0.00027,120]
[335116180,1723860132664,2978.94738733,0.00014519,2]
[335116181,1723860162680,2978.94738733,0.00014519,2]
[335116183,1723860278847,1654.97077074,0.00014519,2]
[335116184,1723860344277,-250.0,0.00015291,2]
[335116185,1723860344301,-250.0,0.00015333,2]
[335116186,1723860344326,-250.0,0.00015375,2]
[335116187,1723860344348,-72.15885986,0.00015417,2]
[335116189,1723860360945,240.23396846,0.00014519,2]
[335116190,1723860368779,862.23977155,0.00014519,2]
[335116191,1723860387802,201.92388385,0.00014519,2]
[335116192,1723860389211,1865.76566987,0.00014519,2]
[335116193,1723860390820,809.05657821,0.00014519,2]
[335116194,1723860427110,-177.84114014,0.00015417,2]
[335116195,1723860427135,-250.0,0.00015459,2]
[335116196,1723860427160,-250.0,0.00015501,2]
[335116197,1723860427184,-250.0,0.00015543,2]
[335116198,1723860427207,-250.0,0.00015585,2]
[335116199,1723860427232,-250.0,0.00015627,2]
[335116200,1723860427255,-250.0,0.00015669,2]
[335116201,1723860427279,-250.0,0.00015711,2]
[335116202,1723860427303,-250.0,0.00015753,2]
[335116203,1723860427331,-250.0,0.00015795,2]
[335116204,1723860427354,-250.0,0.00015837,2]
[335116205,1723860427377,-250.0,0.00015879,2]
[335116206,1723860427404,-250.0,0.0001592,2]
[335116207,1723860427428,-250.0,0.00015962,2]
[335116208,1723860427451,-250.0,0.00016004,2]
[335116209,1723860427474,-250.0,0.00016046,2]
[335116210,1723860427497,-250.0,0.00016088,2]
[335116211,1723860427517,-862.23977155,0.00017598,2]
[335116212,1723860427539,-214.75801558,0.00017598,2]
[335116213,1723860427561,-300.0,0.00019999,2]
[335116214,1723860427583,-14.61606637,0.0002,2]
[335116215,1723860432138,-858.26423625,0.0002,2]
[335116217,1723860440090,-3215.23521352,0.0002,2]
[335116219,1723860524211,862.23977155,0.00014519,2]
[335116221,1723860546172,-222.0,0.00019999,2]
[335116222,1723860546199,-4130.77356134,0.0002,2]